[Event "Rapid della Domenica"]
[Site "Chess.com"]
[Date "2020.04.19"]
[Round "1"]
[White "FrancescoZasa"]
[Black "sirmale49"]
[Result "0-1"]
[WhiteElo "745"]
[BlackElo "1375"]
[TimeControl "720+3"]
[EndTime "6:08:43 PDT"]
[Termination "sirmale49 ha vinto per scaccomatto"]

1. d4 {[%clk 0:12:02.6]} 1... Nf6 {[%clk 0:11:56.5]} 2. Nf3 {[%clk 0:12:02.4]}
2... g6 {[%clk 0:11:58.5]} 3. Nc3 {[%clk 0:12:03.7]} 3... Bg7 {[%clk 0:12:00.6]}
4. e4 {[%clk 0:12:04.6]} 4... O-O {[%clk 0:12:01.6]} 5. Bc4 {[%clk 0:12:02.3]}
5... d6 {[%clk 0:11:59.1]} 6. O-O {[%clk 0:12:02.7]} 6... Nc6 {[%clk 0:11:58.2]}
7. a3 {[%clk 0:11:42.6]} 7... Bg4 {[%clk 0:11:58.8]} 8. h3 {[%clk 0:11:41.8]}
8... Bd7 {[%clk 0:11:49.9]} 9. g4 {[%clk 0:11:37.3]} 9... Na5 {[%clk 0:11:28]}
10. Bd3 {[%clk 0:11:14]} 10... Ne8 {[%clk 0:11:00.5]} 11. b4 {[%clk 0:11:14.3]}
11... Nc6 {[%clk 0:10:59.3]} 12. Bf4 {[%clk 0:10:59.2]} 12... Nxd4 {[%clk
0:10:51.8]} 13. Nxd4 {[%clk 0:10:50.3]} 13... Bxd4 {[%clk 0:10:51.7]} 14. Rb1
{[%clk 0:10:34.2]} 14... Bxc3 {[%clk 0:10:51.2]} 15. Bh6 {[%clk 0:10:14.6]}
15... Ng7 {[%clk 0:10:42.4]} 16. a4 {[%clk 0:09:49]} 16... e5 {[%clk 0:10:43.3]}
17. Bb5 {[%clk 0:09:31.3]} 17... Bxb5 {[%clk 0:10:10.3]} 18. axb5 {[%clk
0:09:28]} 18... Qf6 {[%clk 0:10:10]} 19. f3 {[%clk 0:09:09.6]} 19... Bd4+ {[%clk
0:09:56.2]} 20. Kh1 {[%clk 0:09:04.8]} 20... Qh4 {[%clk 0:09:48.7]} 21. Qe1
{[%clk 0:09:02.9]} 21... Qxh3# {[%clk 0:09:41.8]} 0-1

[Event "Rapid della Domenica"]
[Site "Chess.com"]
[Date "2020.04.19"]
[Round "1"]
[White "caramante"]
[Black "fausto2p"]
[Result "1-0"]
[WhiteElo "1462"]
[BlackElo "922"]
[TimeControl "720+3"]
[EndTime "6:10:05 PDT"]
[Termination "caramante ha vinto per abbandono"]

1. Nf3 {[%clk 0:11:55.8]} 1... Nf6 {[%clk 0:12:00.2]} 2. d4 {[%clk 0:11:56.9]}
2... d5 {[%clk 0:12:01.1]} 3. g3 {[%clk 0:11:57.7]} 3... e6 {[%clk 0:12:00]} 4.
c3 {[%clk 0:11:58.5]} 4... c5 {[%clk 0:11:59.4]} 5. Bg2 {[%clk 0:11:59.9]} 5...
Nc6 {[%clk 0:11:59.3]} 6. Bg5 {[%clk 0:11:59.6]} 6... h6 {[%clk 0:11:58.6]} 7.
Bxf6 {[%clk 0:12:00.5]} 7... Qxf6 {[%clk 0:11:55.4]} 8. O-O {[%clk 0:11:59.3]}
8... Bd6 {[%clk 0:11:21.8]} 9. Nbd2 {[%clk 0:11:58.1]} 9... O-O {[%clk
0:11:07.5]} 10. e4 {[%clk 0:11:58.8]} 10... dxe4 {[%clk 0:10:49.6]} 11. Nxe4
{[%clk 0:11:59.3]} 11... Qe7 {[%clk 0:10:49.3]} 12. Nxd6 {[%clk 0:12:01.1]}
12... Qxd6 {[%clk 0:10:50.5]} 13. dxc5 {[%clk 0:12:03.2]} 13... Qxc5 {[%clk
0:10:41.3]} 14. Re1 {[%clk 0:12:04.8]} 14... Rb8 {[%clk 0:10:09.3]} 15. Qe2
{[%clk 0:12:03.8]} 15... Re8 {[%clk 0:09:48]} 16. Rad1 {[%clk 0:12:03.2]} 16...
b6 {[%clk 0:09:39.4]} 17. Nd4 {[%clk 0:11:56.4]} 17... Nxd4 {[%clk 0:09:34.6]}
18. Rxd4 {[%clk 0:11:55.6]} 18... Bb7 {[%clk 0:09:32.3]} 19. Red1 {[%clk
0:11:52.2]} 19... Bxg2 {[%clk 0:09:25.6]} 20. Kxg2 {[%clk 0:11:53.2]} 20... Qc6+
{[%clk 0:09:10.4]} 21. Kg1 {[%clk 0:11:52.6]} 21... Rbc8 {[%clk 0:08:22.2]} 22.
Rd6 {[%clk 0:11:49.5]} 22... Qa4 {[%clk 0:08:03.1]} 23. a3 {[%clk 0:11:43]}
23... Qa6 {[%clk 0:05:54.2]} 24. Qxa6 {[%clk 0:11:40.9]} 1-0

[Event "Rapid della Domenica"]
[Site "Chess.com"]
[Date "2020.04.19"]
[Round "1"]
[White "crippo"]
[Black "OMatteoWuO"]
[Result "1-0"]
[WhiteElo "1622"]
[BlackElo "1165"]
[TimeControl "720+3"]
[EndTime "6:11:35 PDT"]
[Termination "crippo ha vinto per abbandono"]

1. e4 {[%clk 0:11:56.5]} 1... c5 {[%clk 0:12:01]} 2. Nc3 {[%clk 0:11:49.5]} 2...
Nc6 {[%clk 0:11:59.7]} 3. Nf3 {[%clk 0:11:50.6]} 3... Nf6 {[%clk 0:11:59.7]} 4.
a4 {[%clk 0:11:50.9]} 4... d6 {[%clk 0:11:54.1]} 5. Bb5 {[%clk 0:11:48.7]} 5...
Bd7 {[%clk 0:11:55.5]} 6. d3 {[%clk 0:11:49.1]} 6... a6 {[%clk 0:11:53.3]} 7.
Bxc6 {[%clk 0:11:49.9]} 7... Bxc6 {[%clk 0:11:54.5]} 8. Bf4 {[%clk 0:11:50.4]}
8... e6 {[%clk 0:11:38.1]} 9. O-O {[%clk 0:11:50]} 9... Be7 {[%clk 0:11:33.2]}
10. e5 {[%clk 0:11:49.4]} 10... dxe5 {[%clk 0:11:19]} 11. Nxe5 {[%clk 0:11:49]}
11... Qc7 {[%clk 0:10:54.4]} 12. Nxc6 {[%clk 0:11:47.8]} 12... Qxf4 {[%clk
0:10:46.8]} 13. Nxe7 {[%clk 0:11:46.6]} 13... Kxe7 {[%clk 0:10:47.3]} 14. Ne2
{[%clk 0:11:31.1]} 14... Qc7 {[%clk 0:10:36.9]} 15. Ng3 {[%clk 0:11:31.4]} 15...
Rad8 {[%clk 0:10:28.2]} 16. Qe2 {[%clk 0:11:30.4]} 16... b6 {[%clk 0:10:23.2]}
17. b3 {[%clk 0:11:30.2]} 17... a5 {[%clk 0:10:20.3]} 18. Qe3 {[%clk 0:11:24.9]}
18... h6 {[%clk 0:09:51]} 19. Rfe1 {[%clk 0:11:18.8]} 19... Rd6 {[%clk
0:09:29.3]} 20. Nf5+ {[%clk 0:11:18.6]} 20... Kd7 {[%clk 0:09:28.4]} 21. Nxd6
{[%clk 0:11:20]} 21... Qxd6 {[%clk 0:09:21.4]} 22. Qe5 {[%clk 0:11:19.9]} 22...
Qxe5 {[%clk 0:09:20.5]} 23. Rxe5 {[%clk 0:11:20.8]} 23... Kd6 {[%clk 0:09:21]}
24. Rae1 {[%clk 0:11:17.1]} 24... Ng4 {[%clk 0:09:02.3]} 25. R5e4 {[%clk
0:11:12.5]} 25... Nf6 {[%clk 0:09:03.4]} 26. Rf4 {[%clk 0:11:09.6]} 26... g5
{[%clk 0:09:03.4]} 27. Rf3 {[%clk 0:11:10.6]} 27... Ke7 {[%clk 0:08:59.4]} 28.
Rfe3 {[%clk 0:11:05]} 28... Nd5 {[%clk 0:08:45.8]} 29. R3e2 {[%clk 0:10:53.7]}
29... Kd6 {[%clk 0:08:39.4]} 30. Rd2 {[%clk 0:10:55.2]} 30... Re8 {[%clk
0:08:37.4]} 31. d4 {[%clk 0:10:54.4]} 31... f5 {[%clk 0:08:36.2]} 32. dxc5+
{[%clk 0:10:55.5]} 32... Kxc5 {[%clk 0:08:24.6]} 33. Re5 {[%clk 0:10:46.9]}
33... Kc6 {[%clk 0:08:06.8]} 34. Rdxd5 {[%clk 0:10:45.3]} 34... f4 {[%clk
0:07:52.3]} 35. Rb5 {[%clk 0:10:40.4]} 35... Kb7 {[%clk 0:07:38]} 36. Kf1 {[%clk
0:10:37.9]} 36... Re7 {[%clk 0:07:32.3]} 37. Ke2 {[%clk 0:10:38.8]} 37... Ka6
{[%clk 0:07:10.1]} 38. c4 {[%clk 0:10:39.9]} 38... Kb7 {[%clk 0:07:06.2]} 39. c5
{[%clk 0:10:41.3]} 1-0

[Event "Rapid della Domenica"]
[Site "Chess.com"]
[Date "2020.04.19"]
[Round "1"]
[White "BAKR1980"]
[Black "ottovolante"]
[Result "1-0"]
[WhiteElo "1543"]
[BlackElo "1016"]
[TimeControl "720+3"]
[EndTime "6:15:16 PDT"]
[Termination "BAKR1980 ha vinto per scaccomatto"]

1. e4 {[%clk 0:12:00.4]} 1... e5 {[%clk 0:11:08.4]} 2. Nf3 {[%clk 0:11:58.7]}
2... Nc6 {[%clk 0:11:08.7]} 3. Bc4 {[%clk 0:11:56.1]} 3... Bc5 {[%clk
0:10:58.6]} 4. d4 {[%clk 0:11:48.5]} 4... Nxd4 {[%clk 0:10:41.8]} 5. Bxf7+
{[%clk 0:11:28.8]} 5... Kxf7 {[%clk 0:10:38.6]} 6. Nxe5+ {[%clk 0:11:26.1]} 6...
Kf8 {[%clk 0:10:35]} 7. O-O {[%clk 0:10:50.3]} 7... Nf6 {[%clk 0:10:19.3]} 8.
Bg5 {[%clk 0:10:39.2]} 8... d6 {[%clk 0:10:13.5]} 9. Nf3 {[%clk 0:10:01.5]} 9...
Bg4 {[%clk 0:09:55.6]} 10. Nbd2 {[%clk 0:09:56.6]} 10... h6 {[%clk 0:09:47.5]}
11. Bh4 {[%clk 0:09:43.6]} 11... g5 {[%clk 0:08:08.2]} 12. Bg3 {[%clk
0:09:42.2]} 12... Bxf3 {[%clk 0:06:43.7]} 13. Nxf3 {[%clk 0:09:43]} 13... Qd7
{[%clk 0:06:39.3]} 14. Nxd4 {[%clk 0:09:42.8]} 14... Bxd4 {[%clk 0:06:39.6]} 15.
Qxd4 {[%clk 0:09:44.1]} 15... Kg7 {[%clk 0:06:31.4]} 16. Rad1 {[%clk 0:09:36]}
16... Rhf8 {[%clk 0:06:19.1]} 17. e5 {[%clk 0:09:37]} 17... dxe5 {[%clk
0:06:13.8]} 18. Qxd7+ {[%clk 0:09:34.2]} 18... Nxd7 {[%clk 0:06:15.5]} 19. Rxd7+
{[%clk 0:09:36]} 19... Kf6 {[%clk 0:06:13.3]} 20. Rxc7 {[%clk 0:09:35.6]} 20...
Rad8 {[%clk 0:05:08.4]} 21. Re1 {[%clk 0:09:22.3]} 21... Rd2 {[%clk 0:04:37.9]}
22. c4 {[%clk 0:09:20.3]} 22... Rxb2 {[%clk 0:04:22.5]} 23. Bxe5+ {[%clk
0:09:20.6]} 23... Kf5 {[%clk 0:04:21.5]} 24. Bxb2 {[%clk 0:09:20.3]} 24... Rd8
{[%clk 0:04:20.3]} 25. Re5+ {[%clk 0:09:13]} 25... Kg4 {[%clk 0:04:20.3]} 26.
h3+ {[%clk 0:09:12.6]} 26... Kh5 {[%clk 0:04:21]} 27. Rh7 {[%clk 0:09:06.6]}
27... Rd1+ {[%clk 0:03:59.3]} 28. Kh2 {[%clk 0:09:07.1]} 28... Rd2 {[%clk
0:03:59.9]} 29. Re6 {[%clk 0:09:06.3]} 29... Rxb2 {[%clk 0:04:00.5]} 30. Rhxh6#
{[%clk 0:09:06.5]} 1-0

[Event "Rapid della Domenica"]
[Site "Chess.com"]
[Date "2020.04.19"]
[Round "1"]
[White "Ollarov"]
[Black "sergiodone"]
[Result "1-0"]
[WhiteElo "2018"]
[BlackElo "1354"]
[TimeControl "720+3"]
[EndTime "6:19:42 PDT"]
[Termination "Ollarov ha vinto per abbandono"]

1. e4 {[%clk 0:11:51.5]} 1... g5 {[%clk 0:11:31.4]} 2. d4 {[%clk 0:11:46]} 2...
h6 {[%clk 0:11:31.4]} 3. b3 {[%clk 0:11:43.2]} 3... Bg7 {[%clk 0:11:30.2]} 4.
Bb2 {[%clk 0:11:45.2]} 4... c5 {[%clk 0:11:31.2]} 5. c3 {[%clk 0:11:45.5]} 5...
b6 {[%clk 0:11:12.3]} 6. h4 {[%clk 0:11:00.1]} 6... Bb7 {[%clk 0:11:05.1]} 7.
Nd2 {[%clk 0:10:49.8]} 7... e5 {[%clk 0:09:34.5]} 8. dxe5 {[%clk 0:10:19.7]}
8... Bxe5 {[%clk 0:09:34]} 9. Nc4 {[%clk 0:10:21.4]} 9... Qe7 {[%clk 0:08:59.8]}
10. Nf3 {[%clk 0:10:03.9]} 10... Bf4 {[%clk 0:08:42.9]} 11. e5 {[%clk
0:09:24.9]} 11... g4 {[%clk 0:07:52.4]} 12. Nd6+ {[%clk 0:09:20.5]} 12... Kf8
{[%clk 0:07:42.1]} 13. Nxb7 {[%clk 0:07:26.2]} 13... gxf3 {[%clk 0:07:40.8]} 14.
Qxf3 {[%clk 0:07:25]} 14... Qxe5+ {[%clk 0:07:39.7]} 15. Be2 {[%clk 0:07:22.1]}
15... Nc6 {[%clk 0:07:31.9]} 16. g3 {[%clk 0:07:18.4]} 16... Qc7 {[%clk
0:06:39.6]} 17. gxf4 {[%clk 0:07:06]} 17... Qxb7 {[%clk 0:06:40]} 18. c4 {[%clk
0:07:06.9]} 18... f6 {[%clk 0:06:29.8]} 19. O-O-O {[%clk 0:07:08.2]} 19... h5
{[%clk 0:04:53.6]} 20. Qd5 {[%clk 0:07:00.2]} 20... Nge7 {[%clk 0:04:31.3]} 21.
Qd6 {[%clk 0:06:55.1]} 21... Ke8 {[%clk 0:04:00.8]} 22. Qxf6 {[%clk 0:06:48.7]}
22... Rh7 {[%clk 0:03:04.7]} 23. Bf3 {[%clk 0:06:28.8]} 23... Rf7 {[%clk
0:03:01.9]} 24. Bxh5 {[%clk 0:06:27.4]} 24... Nd8 {[%clk 0:02:53.5]} 25. Qh8+
{[%clk 0:06:22.6]} 25... Ng8 {[%clk 0:02:32.8]} 26. Qxg8+ {[%clk 0:06:20.5]}
26... Ke7 {[%clk 0:02:34.2]} 27. Rhe1+ {[%clk 0:06:21.7]} 27... Ne6 {[%clk
0:02:11.7]} 28. Qxf7+ {[%clk 0:06:22.5]} 28... Kd8 {[%clk 0:02:13.5]} 29. Qe8+
{[%clk 0:06:20.4]} 1-0

[Event "Rapid della Domenica"]
[Site "Chess.com"]
[Date "2020.04.19"]
[Round "1"]
[White "moha1812med"]
[Black "Piccolorso"]
[Result "1-0"]
[WhiteElo "1476"]
[BlackElo "1420"]
[TimeControl "720+3"]
[EndTime "6:20:52 PDT"]
[Termination "moha1812med ha vinto per abbandono"]

1. d4 {[%clk 0:11:57.1]} 1... Nf6 {[%clk 0:12:00]} 2. c4 {[%clk 0:11:53.2]} 2...
e6 {[%clk 0:12:00.4]} 3. Nc3 {[%clk 0:11:32.8]} 3... Bb4 {[%clk 0:12:00]} 4. Bd2
{[%clk 0:11:13.4]} 4... c5 {[%clk 0:11:58.5]} 5. a3 {[%clk 0:10:40.4]} 5... cxd4
{[%clk 0:11:41.5]} 6. axb4 {[%clk 0:10:22.2]} 6... dxc3 {[%clk 0:11:41.9]} 7.
Bxc3 {[%clk 0:10:11.5]} 7... O-O {[%clk 0:11:30.3]} 8. Nf3 {[%clk 0:09:44]} 8...
Qc7 {[%clk 0:10:54]} 9. e3 {[%clk 0:09:02.7]} 9... d5 {[%clk 0:10:12.9]} 10. c5
{[%clk 0:07:55.9]} 10... a6 {[%clk 0:09:42.3]} 11. Be2 {[%clk 0:07:37.2]} 11...
Bd7 {[%clk 0:09:25.2]} 12. O-O {[%clk 0:07:32.3]} 12... Nc6 {[%clk 0:09:26.7]}
13. b5 {[%clk 0:06:59.9]} 13... axb5 {[%clk 0:09:18.3]} 14. Rxa8 {[%clk
0:07:00]} 14... Rxa8 {[%clk 0:09:16.2]} 15. Bxb5 {[%clk 0:06:59]} 15... Ne4
{[%clk 0:08:32]} 16. Bxc6 {[%clk 0:06:01.3]} 16... Nxc3 {[%clk 0:08:18.1]} 17.
Qd4 {[%clk 0:05:56.6]} 17... Bxc6 {[%clk 0:07:58]} 18. Qxc3 {[%clk 0:05:38.9]}
18... f6 {[%clk 0:07:35.3]} 19. Nd4 {[%clk 0:04:56.9]} 19... Qd7 {[%clk
0:07:07.4]} 20. b4 {[%clk 0:04:32.4]} 20... e5 {[%clk 0:06:59.4]} 21. Nxc6
{[%clk 0:04:26.8]} 21... bxc6 {[%clk 0:06:48.8]} 22. Ra1 {[%clk 0:04:26.6]}
22... Rxa1+ {[%clk 0:06:25.6]} 23. Qxa1 {[%clk 0:04:28.2]} 23... Qb7 {[%clk
0:06:22.4]} 24. Qa2 {[%clk 0:04:17.4]} 24... Qxb4 {[%clk 0:06:12.4]} 25. Qa8+
{[%clk 0:04:01.3]} 25... Kf7 {[%clk 0:06:12.9]} 26. Qxc6 {[%clk 0:04:02.3]}
26... Kg6 {[%clk 0:06:11.5]} 27. h3 {[%clk 0:03:54.1]} 27... d4 {[%clk
0:06:10.9]} 28. Qe8+ {[%clk 0:03:04.9]} 28... Kg5 {[%clk 0:06:00.1]} 29. exd4
{[%clk 0:02:31.5]} 29... exd4 {[%clk 0:05:52.3]} 30. c6 {[%clk 0:02:32.5]} 30...
Qe1+ {[%clk 0:05:13.7]} 1-0

[Event "Rapid della Domenica"]
[Site "Chess.com"]
[Date "2020.04.19"]
[Round "1"]
[White "SanSecondoPR"]
[Black "ferrariand"]
[Result "0-1"]
[WhiteElo "1117"]
[BlackElo "1578"]
[TimeControl "720+3"]
[EndTime "6:21:00 PDT"]
[Termination "ferrariand ha vinto per abbandono"]

1. e4 {[%clk 0:11:58.6]} 1... e5 {[%clk 0:12:01]} 2. d4 {[%clk 0:11:56.9]} 2...
exd4 {[%clk 0:12:01.1]} 3. c3 {[%clk 0:11:56.5]} 3... dxc3 {[%clk 0:12:01.8]} 4.
Bc4 {[%clk 0:11:57.3]} 4... cxb2 {[%clk 0:12:02.7]} 5. Bxb2 {[%clk 0:11:57.9]}
5... d5 {[%clk 0:11:55.6]} 6. exd5 {[%clk 0:11:57.8]} 6... Nf6 {[%clk
0:11:55.9]} 7. Nd2 {[%clk 0:11:54.4]} 7... Bd6 {[%clk 0:11:49.3]} 8. Ngf3 {[%clk
0:11:42.7]} 8... O-O {[%clk 0:11:49.2]} 9. O-O {[%clk 0:11:43.3]} 9... Bb4
{[%clk 0:11:10]} 10. Qb3 {[%clk 0:11:38]} 10... a5 {[%clk 0:10:41.6]} 11. a3
{[%clk 0:11:34.8]} 11... Bxd2 {[%clk 0:10:25.8]} 12. Nxd2 {[%clk 0:11:32.4]}
12... c6 {[%clk 0:10:12.5]} 13. Nf3 {[%clk 0:10:47.1]} 13... cxd5 {[%clk
0:10:10.9]} 14. Bd3 {[%clk 0:10:39.8]} 14... Nc6 {[%clk 0:09:16.3]} 15. Ne5
{[%clk 0:10:17.5]} 15... Nxe5 {[%clk 0:09:02.9]} 16. Bxe5 {[%clk 0:10:14.6]}
16... a4 {[%clk 0:08:26.3]} 17. Qb2 {[%clk 0:10:12.4]} 17... Re8 {[%clk
0:07:43.2]} 18. f4 {[%clk 0:10:07.2]} 18... Re6 {[%clk 0:06:21.7]} 19. Rac1
{[%clk 0:09:36.9]} 19... Qb6+ {[%clk 0:06:20.1]} 20. Qxb6 {[%clk 0:09:32.9]}
20... Rxb6 {[%clk 0:06:21.1]} 21. Rc7 {[%clk 0:09:08.1]} 21... Rc6 {[%clk
0:05:51.3]} 22. Rc1 {[%clk 0:08:49.1]} 22... Rxc1+ {[%clk 0:05:37.5]} 23. Rxc1
{[%clk 0:08:47.5]} 23... Be6 {[%clk 0:05:14.9]} 24. Rc7 {[%clk 0:08:35.1]} 24...
b6 {[%clk 0:05:00.9]} 25. f5 {[%clk 0:08:21.8]} 25... Bc8 {[%clk 0:04:27.7]} 26.
Bb5 {[%clk 0:08:09.2]} 26... Bxf5 {[%clk 0:03:58]} 27. Rb7 {[%clk 0:07:51.9]}
27... Ng4 {[%clk 0:03:38.3]} 28. Bd4 {[%clk 0:07:41.8]} 28... Rc8 {[%clk
0:03:21]} 29. Bb2 {[%clk 0:07:18.2]} 29... Be4 {[%clk 0:02:59.5]} 30. Bd7 {[%clk
0:07:01.1]} 30... Rd8 {[%clk 0:02:48.2]} 31. Bxg4 {[%clk 0:06:57]} 31... d4
{[%clk 0:02:39.6]} 32. Bxd4 {[%clk 0:06:48.1]} 32... Bxb7 {[%clk 0:02:40]} 33.
Be3 {[%clk 0:06:40]} 33... b5 {[%clk 0:02:32.3]} 34. Bc5 {[%clk 0:06:33.7]}
34... Rd2 {[%clk 0:02:28.8]} 35. Bf3 {[%clk 0:06:27.8]} 35... Bxf3 {[%clk
0:02:27.8]} 36. gxf3 {[%clk 0:06:25.4]} 36... Rd3 {[%clk 0:02:20.6]} 37. Kg2
{[%clk 0:06:20.6]} 37... f6 {[%clk 0:02:20.5]} 38. Bb4 {[%clk 0:06:20.6]} 38...
Kf7 {[%clk 0:02:21.4]} 39. h4 {[%clk 0:06:21.8]} 39... Ke6 {[%clk 0:02:22.4]}
40. Kg3 {[%clk 0:06:22.8]} 40... g6 {[%clk 0:02:21.4]} 41. Kf4 {[%clk 0:06:23]}
41... Rd4+ {[%clk 0:02:18.2]} 42. Ke3 {[%clk 0:06:22.4]} 42... Rxb4 {[%clk
0:02:16.9]} 43. axb4 {[%clk 0:06:22]} 0-1

[Event "Rapid della Domenica"]
[Site "Chess.com"]
[Date "2020.04.19"]
[Round "1"]
[White "Mrtre7"]
[Black "pedrak"]
[Result "1-0"]
[WhiteElo "1615"]
[BlackElo "1513"]
[TimeControl "720+3"]
[EndTime "6:23:57 PDT"]
[Termination "Mrtre7 ha vinto per abbandono"]

1. d4 {[%clk 0:12:01]} 1... d5 {[%clk 0:12:00.7]} 2. c4 {[%clk 0:12:01.9]} 2...
e6 {[%clk 0:12:00.7]} 3. Nc3 {[%clk 0:11:57.7]} 3... c6 {[%clk 0:12:01]} 4. e3
{[%clk 0:11:53.5]} 4... f5 {[%clk 0:12:01.5]} 5. Bd3 {[%clk 0:11:36.6]} 5... Nf6
{[%clk 0:12:02.2]} 6. f3 {[%clk 0:11:00.2]} 6... Be7 {[%clk 0:11:56.3]} 7. Nge2
{[%clk 0:11:00.7]} 7... O-O {[%clk 0:11:56.5]} 8. O-O {[%clk 0:11:02.7]} 8...
Qe8 {[%clk 0:11:54.1]} 9. cxd5 {[%clk 0:10:42.3]} 9... exd5 {[%clk 0:11:54.4]}
10. e4 {[%clk 0:10:32.3]} 10... fxe4 {[%clk 0:11:45.9]} 11. fxe4 {[%clk
0:10:32.7]} 11... dxe4 {[%clk 0:11:43.3]} 12. Nxe4 {[%clk 0:10:10.9]} 12... Bg4
{[%clk 0:11:30.9]} 13. Qb3+ {[%clk 0:10:02.2]} 13... Kh8 {[%clk 0:11:30.5]} 14.
N2g3 {[%clk 0:09:21.2]} 14... b6 {[%clk 0:11:21.5]} 15. Bg5 {[%clk 0:08:08.3]}
15... Nd5 {[%clk 0:10:38.1]} 16. Bxe7 {[%clk 0:07:36.5]} 16... Rxf1+ {[%clk
0:10:25.8]} 17. Rxf1 {[%clk 0:07:35.8]} 17... Qxe7 {[%clk 0:10:27.2]} 18. Ng5
{[%clk 0:06:37.5]} 18... h6 {[%clk 0:09:29.7]} 19. Nf7+ {[%clk 0:05:43.4]} 19...
Kg8 {[%clk 0:09:28.1]} 20. Ne5 {[%clk 0:05:36.2]} 20... Be6 {[%clk 0:09:17.1]}
21. Nf5 {[%clk 0:04:43.3]} 21... Bxf5 {[%clk 0:08:55.1]} 22. Bxf5 {[%clk
0:04:34.2]} 22... a5 {[%clk 0:08:32.6]} 23. Nxc6 {[%clk 0:04:26.5]} 23... Qe3+
{[%clk 0:08:26.3]} 24. Qxe3 {[%clk 0:04:01.8]} 24... Nxe3 {[%clk 0:08:27.6]} 25.
Ne7+ {[%clk 0:03:21.6]} 25... Kf7 {[%clk 0:07:51.9]} 26. Be4+ {[%clk 0:02:40.6]}
26... Kxe7 {[%clk 0:07:53.3]} 27. Bxa8 {[%clk 0:02:41]} 27... Nxf1 {[%clk
0:07:55.1]} 28. Kxf1 {[%clk 0:02:42.8]} 28... Kd6 {[%clk 0:07:55]} 29. Ke2
{[%clk 0:02:39.1]} 29... Na6 {[%clk 0:07:52.9]} 30. a3 {[%clk 0:02:33.6]} 30...
Nc7 {[%clk 0:07:54.1]} 31. Bf3 {[%clk 0:02:34.9]} 31... Ne6 {[%clk 0:07:55.6]}
32. Kd3 {[%clk 0:02:35]} 32... Ng5 {[%clk 0:07:47.8]} 33. Kc4 {[%clk 0:02:19.3]}
33... Ne6 {[%clk 0:07:45.8]} 34. b3 {[%clk 0:01:59.4]} 34... Nf4 {[%clk
0:07:39.8]} 35. Kb5 {[%clk 0:01:52.3]} 35... Kc7 {[%clk 0:07:40.8]} 36. d5
{[%clk 0:01:48.1]} 36... Nd3 {[%clk 0:05:57.4]} 37. d6+ {[%clk 0:01:36.2]} 37...
Kxd6 {[%clk 0:05:57.8]} 38. Kxb6 {[%clk 0:01:37.9]} 38... a4 {[%clk 0:05:49.5]}
39. b4 {[%clk 0:01:33.5]} 39... Ne5 {[%clk 0:05:49.4]} 40. Ka5 {[%clk
0:01:31.7]} 40... g5 {[%clk 0:05:46.3]} 41. h3 {[%clk 0:01:30.7]} 41... Kc7
{[%clk 0:05:41.4]} 42. Kxa4 {[%clk 0:01:32.4]} 42... Kb6 {[%clk 0:05:42.9]} 43.
Kb3 {[%clk 0:01:31.7]} 43... Nd3 {[%clk 0:05:38.3]} 44. Kc3 {[%clk 0:01:32.1]}
44... Ne5 {[%clk 0:05:38.8]} 45. Kd4 {[%clk 0:01:32.4]} 45... Nd7 {[%clk
0:05:39.4]} 46. a4 {[%clk 0:01:32.7]} 46... Nf6 {[%clk 0:05:37.7]} 47. Ke5
{[%clk 0:01:32.8]} 47... Nd7+ {[%clk 0:05:39.3]} 48. Kf5 {[%clk 0:01:28.2]}
48... Nf8 {[%clk 0:05:37.4]} 49. Kf6 {[%clk 0:01:29]} 49... Kc7 {[%clk 0:05:38]}
50. Kg7 {[%clk 0:01:30.5]} 50... Ne6+ {[%clk 0:05:38.8]} 51. Kxh6 {[%clk
0:01:32.6]} 51... g4 {[%clk 0:05:39.9]} 52. hxg4 {[%clk 0:01:33.4]} 52... Nd4
{[%clk 0:05:41.9]} 53. g5 {[%clk 0:01:34.2]} 53... Kd7 {[%clk 0:05:43.7]} 54. g6
{[%clk 0:01:36.1]} 54... Ke7 {[%clk 0:05:45.1]} 55. Kh7 {[%clk 0:01:31.6]} 1-0

[Event "Rapid della Domenica"]
[Site "Chess.com"]
[Date "2020.04.19"]
[Round "2"]
[White "BAKR1980"]
[Black "Ollarov"]
[Result "0-1"]
[WhiteElo "1531"]
[BlackElo "2023"]
[TimeControl "720+3"]
[EndTime "6:29:41 PDT"]
[Termination "Ollarov ha vinto per abbandono"]

1. e4 {[%clk 0:12:02.9]} 1... c5 {[%clk 0:12:01.5]} 2. Nf3 {[%clk 0:12:00.7]}
2... e6 {[%clk 0:12:02.1]} 3. d4 {[%clk 0:12:02.5]} 3... cxd4 {[%clk 0:12:04.3]}
4. Nxd4 {[%clk 0:12:04.2]} 4... Nc6 {[%clk 0:12:06.8]} 5. Nc3 {[%clk 0:12:05]}
5... Qc7 {[%clk 0:12:09]} 6. Be3 {[%clk 0:12:04.9]} 6... a6 {[%clk 0:12:11.1]}
7. Bd3 {[%clk 0:11:59.8]} 7... Nf6 {[%clk 0:12:12.9]} 8. Qd2 {[%clk 0:11:59.2]}
8... Ng4 {[%clk 0:12:10.5]} 9. O-O-O {[%clk 0:11:18.1]} 9... Nxe3 {[%clk
0:11:50.5]} 10. Qxe3 {[%clk 0:11:18.5]} 10... Bc5 {[%clk 0:11:48.4]} 11. Be2
{[%clk 0:10:59.2]} 11... Qe5 {[%clk 0:11:44.4]} 12. f4 {[%clk 0:10:50]} 12...
Bxd4 {[%clk 0:11:43]} 13. Rxd4 {[%clk 0:10:51.3]} 13... Qxd4 {[%clk 0:11:41]}
14. Qg3 {[%clk 0:10:48]} 14... O-O {[%clk 0:11:37.4]} 15. Rd1 {[%clk 0:10:41.2]}
15... Qc5 {[%clk 0:11:31.3]} 16. h4 {[%clk 0:10:33.6]} 16... Nd4 {[%clk
0:11:18.2]} 17. Bd3 {[%clk 0:10:23.9]} 17... b5 {[%clk 0:11:09.1]} 18. e5 {[%clk
0:10:13.5]} 18... Bb7 {[%clk 0:11:06.6]} 19. Ne4 {[%clk 0:10:12.2]} 19... Bxe4
{[%clk 0:10:54.6]} 20. Bxe4 {[%clk 0:10:13.3]} 20... Ne2+ {[%clk 0:10:52.2]} 0-1

[Event "Rapid della Domenica"]
[Site "Chess.com"]
[Date "2020.04.19"]
[Round "2"]
[White "moha1812med"]
[Black "crippo"]
[Result "0-1"]
[WhiteElo "978"]
[BlackElo "1629"]
[TimeControl "720+3"]
[EndTime "6:30:22 PDT"]
[Termination "crippo ha vinto per scaccomatto"]

1. d4 {[%clk 0:11:56.3]} 1... d5 {[%clk 0:12:00.4]} 2. c4 {[%clk 0:11:37.8]}
2... c6 {[%clk 0:12:01.6]} 3. Nf3 {[%clk 0:11:05.1]} 3... Nf6 {[%clk 0:12:00]}
4. Bf4 {[%clk 0:10:54.4]} 4... Ne4 {[%clk 0:11:55.9]} 5. Bg5 {[%clk 0:10:02.6]}
5... f6 {[%clk 0:11:54.2]} 6. Bf4 {[%clk 0:09:48.1]} 6... g5 {[%clk 0:11:54]} 7.
Bd2 {[%clk 0:09:41.6]} 7... h5 {[%clk 0:11:54.3]} 8. Bb4 {[%clk 0:09:23.7]} 8...
e6 {[%clk 0:11:53.4]} 9. Bxf8 {[%clk 0:09:19.6]} 9... Rxf8 {[%clk 0:11:53.5]}
10. Nfd2 {[%clk 0:09:11.9]} 10... f5 {[%clk 0:11:24.9]} 11. Nxe4 {[%clk
0:08:23.3]} 11... fxe4 {[%clk 0:11:25.4]} 12. e3 {[%clk 0:08:23.6]} 12... g4
{[%clk 0:11:26.5]} 13. g3 {[%clk 0:08:17.9]} 13... Qf6 {[%clk 0:11:27]} 14. Bg2
{[%clk 0:08:02.2]} 14... Qxf2# {[%clk 0:11:24]} 0-1